bitfinex/quotes_BTCUSD_20250410
["timestamp","ask_amount","ask_price","bid_price","bid_amount"]
[1744298590632,0.59496682,80333.0,80325.0,0.001244]
[1744298591010,0.34600182,80333.0,80325.0,0.26268]
[1744298591216,0.59496782,80333.0,80325.0,0.26268]
[1744298591645,0.33355382,80333.0,80330.0,0.248971]
[1744298591839,0.33355382,80333.0,80328.0,0.248978]
[1744298592535,0.12055382,80333.0,80329.0,0.248974]
[1744298592733,4.244e-05,80341.0,80340.0,0.261388]
[1744298593202,0.21304,80364.0,80350.0,0.261356]
[1744298593398,0.21304,80364.0,80350.0,0.27589685]
[1744298593602,0.43396026,80370.0,80350.0,0.39645067]
[1744298593804,0.012441,80374.0,80350.0,0.39645067]
[1744298593805,0.12556929,80360.0,80350.0,0.39632944]
[1744298594247,0.12556929,80360.0,80350.0,0.38990755]
[1744298594425,0.12556929,80360.0,80350.0,0.72990755]
[1744298596380,0.12556929,80360.0,80350.0,0.7153667]
[1744298596789,0.12556929,80360.0,80350.0,0.85046137]
[1744298597231,0.21304,80373.0,80350.0,0.85046137]
[1744298597763,0.21304,80373.0,80350.0,1.26426137]
[1744298597966,0.012441,80379.0,80350.0,1.26426137]
[1744298598128,0.21304,80373.0,80350.0,1.25426137]
[1744298598560,0.21304,80373.0,80350.0,1.26670637]
[1744298599453,0.21304,80373.0,80350.0,1.27904831]
[1744298599806,0.012443,80366.0,80350.0,1.14615255]
[1744298600014,0.248859,80367.0,80350.0,1.14615255]
[1744298600161,0.012444,80356.0,80350.0,0.4138]
[1744298600363,0.2489,80354.0,80350.0,0.4138]
[1744298600631,0.46194,80354.0,80350.0,0.4138]
[1744298600807,3.12055382,80351.0,80350.0,0.4138]
[1744298603001,3.12055382,80351.0,80347.0,0.261365]
[1744298603297,3.12055382,80351.0,80345.0,0.248925]
[1744298603460,0.012446,80347.0,80340.0,0.00042381]
[1744298603658,0.12055382,80346.0,80340.0,0.24936481]
[1744298603881,0.12055382,80346.0,80342.0,0.012446]
[1744298604300,0.12055382,80346.0,80341.0,0.27636288]
[1744298604560,0.12055382,80346.0,80344.0,0.248927]
[1744298605019,3.0,80351.0,80350.0,0.261356]
[1744298605273,3.0,80351.0,80350.0,0.2887362]
[1744298605702,3.0,80351.0,80350.0,1.10267705]
[1744298606576,3.0,80351.0,80350.0,0.76267705]
[1744298606933,3.0,80351.0,80350.0,0.675156]
[1744298607134,3.12055382,80351.0,80343.0,0.012446]
[1744298607373,3.12055382,80351.0,80346.0,0.012446]
[1744298607689,0.248911,80350.0,80342.0,0.248935]
[1744298607833,0.012445,80348.0,80343.0,0.07596858]
[1744298608044,0.261384,80341.0,80340.0,0.00042381]
[1744298608250,0.38193782,80341.0,80340.0,0.00042381]
[1744298608448,0.78193782,80341.0,80340.0,0.00042381]
[1744298610051,0.4,80341.0,80340.0,0.01287081]
[1744298610245,4.542674,80351.0,80344.0,0.248928]
[1744298610488,4.542674,80351.0,80343.0,0.012446]
[1744298610489,0.12055382,80350.0,80347.0,0.248917]
[1744298610688,0.12055382,80350.0,80347.0,0.248918]
[1744298611115,0.12055382,80350.0,80348.0,0.0522737]
[1744298611889,0.12055382,80350.0,80348.0,0.3011897]
[1744298612132,0.12055382,80350.0,80349.0,0.012445]
[1744298612336,4.28132,80351.0,80350.0,0.261356]
[1744298614265,0.012446,80347.0,80340.0,0.26181081]
[1744298614422,0.012446,80343.0,80340.0,0.00042381]
[1744298614628,0.012446,80341.0,80340.0,0.00042381]
[1744298614822,0.13299982,80341.0,80340.0,0.00042381]
[1744298615227,0.012445,80353.0,80342.0,0.012446]
[1744298615592,0.12055382,80350.0,80348.0,0.248914]
[1744298615707,4.40187382,80351.0,80350.0,0.261356]
[1744298615913,4.61491382,80351.0,80348.0,0.248914]
[1744298616112,3.0,80351.0,80350.0,0.012445]
[1744298616318,3.0,80351.0,80350.0,0.44788275]
[1744298616517,3.0,80351.0,80350.0,0.49308275]
[1744298616760,3.0,80351.0,80350.0,0.61363657]
[1744298617759,3.0,80351.0,80350.0,0.49308275]
[1744298619912,3.0,80351.0,80349.0,0.248913]
[1744298620206,0.12055382,80350.0,80342.0,0.012446]
[1744298620348,0.12055382,80350.0,80331.0,0.004]
[1744298620349,3.0,80351.0,80350.0,0.261356]
[1744298620545,3.12055382,80351.0,80348.0,0.248915]
[1744298620770,0.12055382,80350.0,80348.0,0.26136]
[1744298621039,0.12055382,80350.0,80349.0,0.0796541]
[1744298621224,0.012445,80348.0,80341.0,0.012446]
[1744298621466,0.12055382,80347.0,80344.0,0.248929]
[1744298621789,0.12055382,80347.0,80344.0,0.012446]
[1744298622054,0.248926,80345.0,80341.0,0.248938]
[1744298622261,0.36948382,80344.0,80340.0,0.26181181]
[1744298622463,0.248936,80342.0,80340.0,0.00042381]
[1744298622599,0.12055382,80341.0,80340.0,0.00042381]
[1744298622806,0.13299982,80341.0,80340.0,0.00042381]
[1744298623015,0.12055382,80341.0,80340.0,0.00042381]
[1744298624014,3.0,80351.0,80345.0,0.248926]
[1744298624256,0.33327382,80350.0,80349.0,0.012445]
[1744298624455,0.23521942,80350.0,80349.0,0.012445]
[1744298625101,0.33327382,80350.0,80337.0,0.012447]
[1744298625309,0.012446,80347.0,80340.0,0.00042381]
[1744298625436,0.261381,80342.0,80340.0,0.00042381]
[1744298625638,0.12055382,80341.0,80340.0,0.00042381]
[1744298625863,0.13299982,80341.0,80340.0,0.00042381]
[1744298626478,0.15549627,80341.0,80340.0,0.00042381]
[1744298628408,0.36825627,80341.0,80340.0,0.00042381]
[1744298629140,0.60474827,80341.0,80340.0,0.00042381]
[1744298629311,0.61719427,80341.0,80340.0,0.00042381]
[1744298629517,0.60474827,80341.0,80340.0,0.00042381]
[1744298629695,0.61719427,80341.0,80340.0,0.02660649]
[1744298629890,0.61719427,80341.0,80340.0,0.00042381]
[1744298632161,1.01719427,80341.0,80340.0,0.00042381]
[1744298632320,0.261414,80332.0,80331.0,0.004]
[1744298632614,0.38196782,80332.0,80331.0,0.004]
[1744298633030,0.40446427,80332.0,80331.0,0.004]
[1744298634608,0.41363855,80332.0,80331.0,0.004]
[1744298635930,0.81363855,80332.0,80331.0,0.004]
[1744298637445,0.81363855,80332.0,80331.0,1e-06]
[1744298637619,0.82602419,80332.0,80331.0,1e-06]
[1744298638649,1.03882419,80332.0,80331.0,1e-06]
[1744298640847,0.261434,80326.0,80325.0,1e-06]
[1744298641131,1.66390782,80326.0,80325.0,1e-06]
[1744298641268,1.73510427,80326.0,80325.0,1e-06]
[1744298641472,2.13510427,80326.0,80325.0,1e-06]
[1744298642754,2.47510427,80326.0,80325.0,1e-06]
[1744298643075,2.68790427,80326.0,80325.0,1e-06]
[1744298644430,2.68790427,80326.0,80325.0,1e-06]
[1744298644883,2.47610427,80326.0,80325.0,1e-06]
[1744298645089,2.69090427,80326.0,80325.0,1e-06]
[1744298645228,2.68990427,80326.0,80325.0,1e-06]
[1744298645428,2.68790427,80326.0,80325.0,1e-06]
[1744298646313,2.68890427,80326.0,80325.0,1e-06]
[1744298646625,2.34890427,80326.0,80325.0,1e-06]
[1744298646830,2.30020427,80326.0,80325.0,1e-06]
[1744298647229,2.08840427,80326.0,80325.0,1e-06]
[1744298647451,2.27838782,80326.0,80325.0,1e-06]
[1744298647653,2.27738782,80326.0,80325.0,1e-06]
[1744298647861,2.39682041,80326.0,80325.0,1e-06]
[1744298648141,2.73682041,80326.0,80325.0,1e-06]
[1744298648361,0.261489,80309.0,80308.0,0.01962662]
[1744298648543,0.38204282,80309.0,80308.0,0.01962662]
[1744298648760,0.4044523,80309.0,80308.0,0.01962662]
[1744298648953,0.8044523,80309.0,80308.0,0.01962662]
[1744298649370,0.261519,80300.0,80271.0,0.004]
[1744298649527,0.59455282,80300.0,80271.0,0.004]
[1744298649725,0.6169623,80300.0,80271.0,0.004]
[1744298649993,0.62616095,80300.0,80277.0,0.249135]
[1744298650172,0.62616095,80300.0,80276.0,0.261597]
[1744298650379,0.62616095,80300.0,80275.0,0.249143]
[1744298650510,0.62616095,80300.0,80276.0,0.24914]
[1744298650712,0.62616095,80300.0,80275.0,0.2616]
[1744298650921,0.41368095,80300.0,80275.0,0.261597]
[1744298651121,0.62616095,80300.0,80274.0,0.012457]
[1744298651431,0.62616095,80300.0,80276.0,0.261596]
[1744298651638,0.62616095,80300.0,80277.0,0.249137]
[1744298651837,0.62616095,80300.0,80278.0,0.249134]
[1744298652102,0.62616095,80300.0,80284.0,0.261567]
[1744298652296,0.41368095,80300.0,80282.0,0.249121]
[1744298652497,1.02620095,80300.0,80281.0,0.26158]
[1744298652803,1.02620095,80300.0,80281.0,0.249124]
[1744298653563,1.02620095,80300.0,80273.0,0.0462]
[1744298653811,1.02620095,80300.0,80298.0,8.5e-07]
[1744298653812,0.601522,80299.0,80298.0,8.5e-07]
[1744298654008,0.72207582,80299.0,80298.0,8.5e-07]
[1744298654235,0.7444853,80299.0,80298.0,8.5e-07]
[1744298654443,1.1444853,80299.0,80298.0,8.5e-07]
[1744298655206,0.012456,80279.0,80273.0,0.261606]
[1744298655526,0.12055382,80278.0,80274.0,0.03031462]
[1744298655746,1.28248,80291.0,80273.0,0.012457]
[1744298655747,0.21256,80282.0,80278.0,0.261587]
[1744298655949,0.012456,80279.0,80271.0,0.004]
[1744298656101,0.249152,80272.0,80271.0,0.004]
[1744298656309,0.12055382,80272.0,80271.0,0.004]
[1744298656512,0.142979,80272.0,80271.0,0.004]
[1744298656709,0.155436,80272.0,80271.0,0.004]
[1744298656909,0.142979,80272.0,80271.0,0.004]
[1744298657341,0.142979,80272.0,80271.0,0.03059675]
[1744298657538,0.155436,80272.0,80271.0,0.004]
[1744298657742,0.15419364,80272.0,80271.0,0.004]
[1744298657948,0.41580264,80272.0,80271.0,0.004]
[1744298662424,0.249172,80266.0,80258.0,0.00249173]
[1744298662637,0.012459,80263.0,80259.0,0.02641587]
[1744298662848,0.13301282,80263.0,80249.0,0.249222]
[1744298663053,0.24919,80260.0,80252.0,0.00249174]
[1744298663267,0.249196,80258.0,80252.0,0.00249174]
[1744298663637,0.24919,80260.0,80252.0,0.00249174]
[1744298663638,0.249209,80254.0,80252.0,0.00249174]
[1744298663843,0.249209,80254.0,80250.0,0.00078]
[1744298664039,0.249209,80254.0,80251.0,0.0262472]
[1744298664506,0.249199,80257.0,80251.0,0.0262472]
[1744298664705,0.249199,80257.0,80252.0,0.00249185]
[1744298664904,0.249199,80257.0,80251.0,0.0262472]
[1744298664905,0.24962357,80257.0,80251.0,0.0262472]
[1744298665310,0.249205,80256.0,80251.0,0.0262472]
[1744298665511,0.24962357,80257.0,80252.0,0.03136392]
[1744298665714,0.00042457,80257.0,80256.0,0.01246]
[1744298665870,0.00042457,80257.0,80256.0,0.01495161]
[1744298666071,0.00042457,80257.0,80256.0,0.02700085]
[1744298668984,0.00042457,80257.0,80256.0,0.53524594]
[1744298669179,0.00042457,80257.0,80256.0,0.65318726]
[1744298670524,0.261532,80296.0,80284.0,0.261568]
[1744298670723,0.12055382,80290.0,80285.0,0.012455]
[1744298670928,0.12055382,80290.0,80281.0,0.26158]
[1744298671130,0.13300782,80290.0,80283.0,0.012455]
[1744298671351,0.24911,80286.0,80272.0,0.0469]
[1744298671562,0.012455,80283.0,80276.0,0.249138]
[1744298671919,0.249128,80280.0,80276.0,0.00012719]
[1744298672111,0.261577,80282.0,80276.0,0.24926619]
[1744298672293,0.12055382,80283.0,80281.0,0.26158]
[1744298672507,0.12055382,80283.0,80282.0,0.06984324]
[1744298672707,0.012455,80288.0,80282.0,0.31896324]
[1744298672907,0.12055382,80287.0,80282.0,0.31896324]
[1744298673146,0.12055382,80287.0,80283.0,0.249117]
[1744298673316,0.01124888,80286.0,80285.0,0.249111]
[1744298673523,0.01124888,80286.0,80285.0,0.012455]
[1744298674125,0.01124888,80286.0,80284.0,0.26365485]
[1744298674348,0.01124888,80286.0,80285.0,0.0895304]
[1744298674539,0.01124888,80299.0,80296.0,0.012453]
[1744298674957,0.01124888,80299.0,80297.0,0.261528]
[1744298675162,0.01124888,80299.0,80297.0,0.249072]
[1744298675641,0.01124888,80299.0,80293.0,0.012454]
[1744298675845,0.01124888,80299.0,80297.0,0.012453]
[1744298676086,0.01124888,80299.0,80298.0,0.0286435]
[1744298676521,0.01124888,80299.0,80298.0,0.0410965]
[1744298677457,4.5,80300.0,80299.0,0.261522]
[1744298684607,4.5,80300.0,80299.0,0.012453]
[1744298684909,4.5,80300.0,80299.0,0.249069]
[1744298685139,4.5,80300.0,80299.0,0.2876742]
[1744298692710,2.28215794,80300.0,80299.0,1.32566887]
[1744298692941,0.67481194,80300.0,80299.0,1.29951667]
[1744298693158,0.67481194,80300.0,80299.0,1.25389517]
[1744298693358,0.67481194,80300.0,80299.0,1.30889517]
[1744298693570,0.004,80329.0,80300.0,0.34]
[1744298693770,0.004,80329.0,80324.0,0.27598085]
[1744298695216,0.004,80329.0,80324.0,0.27610804]
[1744298695734,0.004,80329.0,80324.0,0.00012719]
[1744298696927,0.004,80329.0,80324.0,0.0026167]
[1744298697101,0.004,80329.0,80324.0,0.0150657]
[1744298697744,0.004,80329.0,80324.0,0.02960655]
[1744298698049,0.004,80329.0,80324.0,0.02711704]
[1744298700432,0.004,80329.0,80324.0,0.00012719]
[1744298700648,0.16719062,80325.0,80324.0,0.00012719]
[1744298700881,0.38847062,80325.0,80324.0,0.00012719]
[1744298701240,0.2679168,80325.0,80324.0,0.00012719]
[1744298701441,0.0003368,80325.0,80324.0,0.26156719]
[1744298701850,0.0003368,80325.0,80324.0,0.24911819]
[1744298702249,0.0003368,80325.0,80324.0,0.00012719]
[1744298703444,0.17923962,80325.0,80324.0,0.00012719]
[1744298703946,0.40051962,80325.0,80324.0,0.00012719]
[1744298706667,0.43597062,80325.0,80283.0,0.012455]
[1744298706838,0.0489,80304.0,80301.0,4.244e-05]
[1744298707169,0.261509,80303.0,80301.0,4.244e-05]
[1744298707359,0.17840582,80302.0,80301.0,4.244e-05]
[1744298707912,0.18965393,80302.0,80301.0,4.244e-05]
[1744298708319,0.23695393,80302.0,80301.0,4.244e-05]
[1744298708955,0.23695393,80302.0,80252.0,0.055]
[1744298709153,0.012458,80268.0,80256.0,0.4138]
[1744298709468,0.012457,80272.0,80256.0,0.01246]
[1744298709675,0.012458,80268.0,80252.0,0.249214]
[1744298709873,0.249164,80269.0,80252.0,0.249213]
[1744298710021,0.249164,80269.0,80254.0,0.249207]
[1744298710223,0.012457,80270.0,80255.0,0.249204]
[1744298710425,0.261618,80270.0,80254.0,0.01454085]
[1744298710627,0.2617453,80270.0,80254.0,0.249207]
[1744298710840,0.0001273,80270.0,80255.0,0.01246]
[1744298711067,0.0001273,80270.0,80257.0,0.012459]
[1744298711267,0.0001273,80270.0,80269.0,0.26162]
[1744298711466,0.0001273,80270.0,80269.0,0.73671467]
[1744298711687,0.0001273,80270.0,80269.0,1.15051467]
[1744298711978,0.0001273,80270.0,80269.0,1.02996085]
[1744298712109,0.12556929,80308.0,80300.0,0.249066]
[1744298712309,0.00012756,80303.0,80302.0,0.249059]
[1744298712517,0.00012756,80303.0,80302.0,1.02985185]
[1744298713217,0.00012756,80303.0,80302.0,1.03485185]
[1744298713372,0.00012756,80303.0,80302.0,1.04720156]
[1744298713573,0.00012756,80303.0,80302.0,1.04220156]
[1744298714204,0.00012756,80303.0,80302.0,0.79314256]
[1744298714727,0.00012756,80303.0,80302.0,0.78079285]
[1744298715023,0.00012756,80303.0,80302.0,0.42834085]
[1744298715179,0.00012756,80303.0,80302.0,0.44079285]
[1744298716637,0.00012756,80303.0,80302.0,0.4138]
[1744298717747,0.00012756,80303.0,80298.0,0.01454085]
[1744298717948,0.00012756,80303.0,80297.0,0.261527]
[1744298718214,0.00012756,80303.0,80296.0,0.34]
[1744298718550,0.0453,80302.0,80290.0,0.012454]
[1744298718755,0.0453,80302.0,80290.0,0.26155]
[1744298719097,0.0453,80302.0,80299.0,0.261521]
[1744298719297,0.0453,80302.0,80301.0,0.012453]
[1744298719498,0.00012756,80303.0,80302.0,0.249059]
[1744298719674,0.00012756,80303.0,80296.0,0.249076]
[1744298719899,0.00012756,80303.0,80296.0,0.26361785]
[1744298720114,0.00012756,80303.0,80300.0,0.249065]
[1744298720306,0.00012756,80303.0,80301.0,0.261515]
[1744298720513,0.00012756,80303.0,80302.0,0.01494224]
[1744298721570,0.00012756,80303.0,80302.0,0.012452]
[1744298722437,0.00012756,80303.0,80299.0,0.01454085]
[1744298722678,0.00012756,80303.0,80289.0,0.662898]
[1744298722897,0.00012756,80303.0,80291.0,0.261547]
[1744298723107,0.01257956,80303.0,80290.0,0.01454085]
[1744298723311,0.00012756,80303.0,80291.0,0.012454]
[1744298723520,0.00012756,80303.0,80295.0,0.261533]
[1744298723749,0.00012756,80303.0,80302.0,0.261511]
[1744298724107,0.00012756,80303.0,80302.0,0.39660567]
[1744298724234,0.00012756,80303.0,80302.0,0.73660567]
[1744298724439,0.00012756,80303.0,80302.0,0.61605185]
[1744298724646,0.00012756,80303.0,80302.0,0.02699285]
[1744298724845,0.00012756,80303.0,80302.0,0.90383671]
[1744298725034,0.00012756,80303.0,80302.0,0.90134667]
[1744298725662,0.0003368,80325.0,80324.0,0.26144]
[1744298725861,0.0003368,80325.0,80323.0,0.248994]
[1744298726077,0.0003368,80325.0,80324.0,0.01493854]
[1744298726281,0.0003368,80325.0,80324.0,0.02698985]
[1744298726482,0.0003368,80325.0,80324.0,0.90383305]
[1744298726680,0.0003368,80325.0,80324.0,0.90134367]
[1744298726854,0.0003368,80325.0,80324.0,0.91406945]
[1744298728988,0.0003368,80325.0,80324.0,0.91906945]
[1744298729406,0.0003368,80325.0,80324.0,0.96906945]
[1744298729947,6e-07,80331.0,80327.0,0.4138]
[1744298730118,4e-07,80333.0,80332.0,0.67095485]
[1744298730319,0.12556929,80353.0,80352.0,0.588904]
[1744298730485,0.0004253,80353.0,80352.0,1.14279867]
[1744298730706,0.0004253,80353.0,80352.0,1.15524367]
[1744298731874,0.0004253,80353.0,80352.0,1.15024367]
[1744298732693,0.0004253,80353.0,80352.0,1.15524367]
[1744298734255,0.0004253,80353.0,80352.0,1.15024367]
[1744298734867,0.0004253,80353.0,80352.0,1.37016367]
[1744298735454,0.0004253,80353.0,80352.0,1.37516367]
[1744298735588,0.0498253,80353.0,80352.0,0.4188]
[1744298735787,0.248932,80343.0,80332.0,0.4138]
[1744298735990,0.012446,80341.0,80332.0,0.4138]
[1744298736171,0.012446,80347.0,80332.0,0.4138]
[1744298736172,0.0004253,80353.0,80340.0,0.012447]
[1744298736376,0.0004253,80353.0,80344.0,0.248927]
[1744298736674,0.0004253,80353.0,80337.0,0.012447]
[1744298736870,0.012445,80348.0,80336.0,0.34]
[1744298737106,0.0461,80348.0,80338.0,0.248947]
[1744298737310,0.012447,80338.0,80323.0,0.248993]
[1744298737574,0.012446,80346.0,80330.0,0.248971]
[1744298737575,0.012446,80344.0,80330.0,0.248971]
[1744298737743,0.12055382,80343.0,80332.0,0.261412]
[1744298737948,0.12055382,80343.0,80333.0,0.00248936]
[1744298738141,0.38193382,80343.0,80331.0,0.248968]
[1744298738346,0.248936,80342.0,80330.0,0.352448]
[1744298738540,0.248927,80345.0,80333.0,0.261409]
[1744298738754,0.012446,80344.0,80330.0,0.588971]
[1744298738952,0.012446,80344.0,80331.0,0.261415]
[1744298739156,0.012446,80344.0,80333.0,0.248963]
[1744298739357,0.261376,80344.0,80332.0,0.248966]
[1744298739558,0.261376,80344.0,80329.0,0.012448]
[1744298739559,0.248939,80341.0,80329.0,0.34]
[1744298739736,0.248942,80340.0,80329.0,0.34]
[1744298739942,0.012447,80337.0,80317.0,0.01245]
[1744298740144,0.12055382,80337.0,80323.0,0.012449]
[1744298740363,0.12055382,80337.0,80325.0,0.012449]
[1744298740524,0.012446,80345.0,80328.0,0.248978]
[1744298740726,0.248945,80339.0,80329.0,0.00248938]
[1744298740963,0.26138,80343.0,80329.0,0.00248938]
[1744298740964,0.294922,80347.0,80333.0,0.012448]
[1744298741287,0.046,80347.0,80337.0,0.012447]
[1744298741503,0.046,80347.0,80336.0,0.248953]
[1744298742419,0.307367,80347.0,80335.0,0.248957]
[1744298742626,0.307367,80347.0,80336.0,0.248953]
[1744298742826,0.294921,80347.0,80337.0,0.248951]
[1744298743022,0.248923,80346.0,80335.0,0.261404]
[1744298743226,0.248924,80346.0,80334.0,0.012448]
[1744298743445,0.012446,80342.0,80330.0,0.01454085]
[1744298743643,0.248938,80342.0,80332.0,0.248966]
[1744298743850,0.16655382,80347.0,80328.0,0.675226]
[1744298743851,0.012448,80330.0,80328.0,0.4138]
[1744298744170,0.0451,80329.0,80328.0,0.4138]
[1744298744371,0.0451,80329.0,80321.0,0.248999]
[1744298744509,0.0451,80329.0,80322.0,0.012449]
[1744298744711,0.0451,80329.0,80315.0,0.34]
[1744298744712,0.057548,80329.0,80315.0,0.34]
[1744298744893,0.248981,80328.0,80315.0,0.35245]
[1744298745100,0.306527,80329.0,80318.0,0.24901]
[1744298745299,0.012449,80324.0,80315.0,0.34]
[1744298745610,0.0451,80329.0,80317.0,0.249013]
[1744298745611,0.248979,80328.0,80317.0,0.249013]
[1744298746036,0.248985,80326.0,80315.0,0.34]
[1744298746238,0.248989,80325.0,80315.0,0.34]
[1744298746441,0.248993,80324.0,80315.0,0.34]
[1744298746736,0.261434,80326.0,80315.0,0.34]
[1744298746737,0.261431,80327.0,80317.0,0.249012]
[1744298746943,0.24910852,80328.0,80317.0,0.249012]
[1744298746944,0.24910952,80328.0,80317.0,0.249013]
[1744298747347,0.248989,80325.0,80315.0,0.34]
[1744298747549,0.261432,80327.0,80315.0,0.589016]
[1744298747727,0.261432,80327.0,80307.0,0.249042]
[1744298747728,0.01245,80320.0,80306.0,0.012452]
[1744298747926,0.0473,80314.0,80299.0,0.012453]
[1744298748276,0.059751,80314.0,80299.0,0.012453]
[1744298748477,0.0473,80314.0,80303.0,0.012452]
[1744298748642,0.0473,80314.0,80305.0,0.24905]
[1744298749160,0.0473,80314.0,80304.0,0.012452]
[1744298749622,0.0473,80314.0,80312.0,0.249026]
[1744298749811,0.0473,80314.0,80313.0,0.012451]
[1744298750422,0.00012752,80328.0,80326.0,0.261433]
[1744298750577,0.00012752,80328.0,80327.0,0.00248943]
[1744298750780,0.00012752,80328.0,80324.0,0.248988]
[1744298750968,0.00012752,80328.0,80325.0,0.248987]
[1744298751171,0.00012752,80328.0,80327.0,0.248982]
[1744298751591,0.00012752,80328.0,80325.0,0.261436]
[1744298752027,0.00012752,80328.0,80324.0,0.261439]
[1744298752180,0.00012752,80328.0,80325.0,0.248987]
[1744298752382,0.00012752,80328.0,80326.0,0.248984]
[1744298753350,0.00012752,80328.0,80327.0,0.248982]
[1744298753627,0.00012752,80328.0,80321.0,0.249]
[1744298753781,0.248986,80326.0,80316.0,0.01245]
[1744298753983,0.248985,80327.0,80315.0,0.34]
[1744298754187,0.00012752,80328.0,80323.0,0.248994]
[1744298754820,0.00012752,80328.0,80324.0,0.248988]
[1744298754979,0.00012752,80328.0,80326.0,0.012449]
[1744298755178,0.00012752,80328.0,80325.0,0.261437]
[1744298755406,0.00012752,80328.0,80327.0,0.261431]
[1744298756603,0.00012752,80328.0,80327.0,0.27597185]
[1744298756798,0.00012752,80328.0,80327.0,0.39652567]
[1744298758253,0.00012752,80328.0,80327.0,0.261431]
[1744298758458,0.00012752,80328.0,80323.0,0.012449]
[1744298758673,0.00012752,80328.0,80317.0,0.249011]
[1744298758823,0.00012752,80328.0,80320.0,0.249]
[1744298759024,0.00012752,80328.0,80321.0,0.248998]
[1744298759248,0.00012752,80328.0,80327.0,0.248982]
[1744298759418,0.00012752,80328.0,80327.0,0.261431]
[1744298759853,0.00012752,80328.0,80317.0,0.01245]
[1744298760051,0.00012752,80328.0,80321.0,0.248998]
[1744298760380,0.00012752,80328.0,80327.0,0.248982]
[1744298760724,0.00012752,80328.0,80321.0,0.248998]
[1744298760927,0.00012752,80328.0,80322.0,0.261444]
[1744298761132,0.00012752,80328.0,80326.0,0.248984]
[1744298761352,0.00012752,80328.0,80325.0,0.012449]
[1744298761558,0.00012752,80328.0,80325.0,0.261437]
[1744298761729,0.00012752,80328.0,80316.0,0.01245]
[1744298761930,0.00012752,80328.0,80314.0,0.4138]
[1744298761931,0.248998,80322.0,80314.0,0.4138]
[1744298762131,0.012451,80314.0,80301.0,0.4138]
[1744298762334,0.012451,80314.0,80292.0,0.0001682]
[1744298762335,0.0491,80302.0,80292.0,0.0001682]
[1744298762535,0.0491,80302.0,80299.0,0.249068]
[1744298762741,0.0491,80302.0,80300.0,0.249064]
[1744298763192,0.0491,80302.0,80299.0,0.261521]
[1744298763387,0.0491,80302.0,80301.0,0.249062]
[1744298763607,0.01245,80316.0,80304.0,0.249051]
[1744298763809,0.012451,80309.0,80297.0,0.012453]
[1744298764013,0.249032,80311.0,80302.0,0.249059]
[1744298764155,0.012453,80299.0,80292.0,0.0001682]
[1744298764358,0.261541,80293.0,80292.0,0.00029576]
[1744298764696,0.42949482,80293.0,80292.0,0.00029576]
[1744298764844,0.46303058,80293.0,80292.0,0.00029576]
[1744298766553,0.260667,80285.0,80271.0,0.004]
[1744298766757,0.308909,80272.0,80271.0,0.004]
[1744298766956,0.42946282,80272.0,80271.0,0.004]
[1744298767184,0.45181679,80272.0,80271.0,0.004]
[1744298767387,0.19020779,80272.0,80271.0,0.004]
[1744298767625,0.08083576,80272.0,80271.0,0.016457]
[1744298767823,0.08083576,80272.0,80271.0,0.01894843]
[1744298767998,0.03353576,80272.0,80271.0,0.01894843]
[1744298768322,0.01118179,80272.0,80271.0,0.004]
[1744298768538,0.12055382,80272.0,80271.0,0.004]
[1744298768764,0.02230627,80272.0,80271.0,0.004]
[1744298769165,0.02230627,80272.0,80271.0,0.01894821]
[1744298769314,0.02230627,80272.0,80271.0,0.016457]
[1744298769515,0.02230627,80272.0,80271.0,0.01894811]
[1744298769966,0.0469,80282.0,80274.0,0.012457]
[1744298770293,0.0469,80282.0,80278.0,0.012456]
[1744298770469,0.0469,80282.0,80280.0,0.012456]
[1744298770470,0.01114516,80281.0,80280.0,0.012456]
[1744298770640,0.01114516,80281.0,80280.0,0.02699685]
[1744298770840,0.01114516,80281.0,80280.0,0.48755067]
[1744298771407,0.046,80294.0,80293.0,0.012454]
[1744298771632,0.24899,80325.0,80295.0,0.261534]
[1744298771633,0.0471,80304.0,80295.0,0.261534]
[1744298771865,0.04722749,80304.0,80303.0,0.249056]
[1744298772063,0.00012749,80304.0,80303.0,0.261508]
[1744298772308,0.00012749,80304.0,80303.0,0.39660267]
[1744298772641,0.00012749,80304.0,80303.0,0.261508]
[1744298772997,0.00012749,80304.0,80303.0,0.27604885]
[1744298773155,0.00012749,80304.0,80303.0,0.012452]
[1744298773361,0.00012749,80304.0,80303.0,0.02948303]
[1744298773877,0.00012749,80304.0,80303.0,0.02699285]
[1744298774216,0.00012749,80304.0,80303.0,0.012452]
[1744298774594,0.00012749,80304.0,80299.0,0.249068]
[1744298774794,0.00012749,80304.0,80303.0,0.0024901]
[1744298774995,0.00012749,80304.0,80303.0,0.012452]
[1744298775196,0.00012749,80304.0,80303.0,0.0149421]
[1744298775570,0.00012749,80304.0,80303.0,0.261508]
[1744298777418,0.00012749,80304.0,80303.0,0.27604885]
[1744298778584,0.00012749,80304.0,80303.0,0.39660267]
[1744298778713,0.00012749,80304.0,80303.0,0.73660267]
[1744298779341,4.9e-07,80304.0,80303.0,0.73660267]
[1744298780614,4.9e-07,80304.0,80303.0,0.74160267]
[1744298781029,4.9e-07,80304.0,80303.0,1.15540267]
[1744298781446,0.0499,80355.0,80351.0,0.248905]
[1744298781649,0.0003366,80365.0,80352.0,0.248904]
[1744298781847,0.2004253,80353.0,80352.0,0.261349]
[1744298782050,0.2004253,80353.0,80352.0,0.012445]
[1744298784698,0.2004253,80353.0,80352.0,0.352445]
[1744298784915,0.2004253,80353.0,80352.0,0.36698585]
[1744298785118,0.2004253,80353.0,80352.0,0.352445]
[1744298787237,0.2004253,80353.0,80352.0,0.36698585]
[1744298787470,0.0003366,80365.0,80357.0,0.261333]
[1744298787471,1e-07,80358.0,80357.0,0.261333]
[1744298787673,1e-07,80359.0,80358.0,0.36698485]
[1744298787874,9e-07,80366.0,80365.0,0.36698385]
[1744298788079,7e-07,80379.0,80375.0,0.012441]
[1744298788279,7e-07,80381.0,80380.0,0.601258]
[1744298788435,7e-07,80381.0,80380.0,0.73635267]
[1744298788650,0.00012825,80381.0,80380.0,0.73635267]
[1744298789642,0.00012825,80381.0,80380.0,0.74585743]
[1744298790427,0.00012825,80381.0,80380.0,0.62530361]
[1744298790636,8.5e-07,80383.0,80382.0,0.601251]